[Event "*** SCC Grand Prix: Titled Tuesday Blitz"]
[Site "Chess.com"]
[Date "2020.08.11"]
[Round "6"]
[White "Dvacetsekund"]
[Black "Ural_bogatyr"]
[Result "1-0"]
[WhiteElo "2151"]
[BlackElo "2351"]
[TimeControl "180+1"]
[EndTime "11:07:55 PDT"]
[Termination "Dvacetsekund won on time"]

1. e4 {[%clk 0:03:00.9]} 1... e5 {[%clk 0:02:58.2]} 2. Nf3 {[%clk 0:03:01]} 2...
Nc6 {[%clk 0:02:57.1]} 3. Bc4 {[%clk 0:03:00.7]} 3... Nf6 {[%clk 0:02:56.4]} 4.
d3 {[%clk 0:03:00.9]} 4... h6 {[%clk 0:02:55.1]} 5. c3 {[%clk 0:02:57.5]} 5...
d6 {[%clk 0:02:53.9]} 6. O-O {[%clk 0:02:55.1]} 6... g5 {[%clk 0:02:54.8]} 7.
Nbd2 {[%clk 0:02:46.5]} 7... Bg7 {[%clk 0:02:51.2]} 8. d4 {[%clk 0:02:30.1]}
8... Bg4 {[%clk 0:02:23.5]} 9. Bb5 {[%clk 0:02:15.8]} 9... O-O {[%clk
0:02:14.9]} 10. Bxc6 {[%clk 0:02:03.4]} 10... bxc6 {[%clk 0:02:12]} 11. dxe5
{[%clk 0:02:02.9]} 11... dxe5 {[%clk 0:02:10.1]} 12. Qc2 {[%clk 0:01:54.7]}
12... Qe7 {[%clk 0:02:06.5]} 13. h3 {[%clk 0:01:48.6]} 13... Bh5 {[%clk
0:02:05.1]} 14. b3 {[%clk 0:01:43.4]} 14... g4 {[%clk 0:02:03]} 15. hxg4 {[%clk
0:01:42.6]} 15... Nxg4 {[%clk 0:02:00.2]} 16. a4 {[%clk 0:01:39.7]} 16... Rfd8
{[%clk 0:01:48.2]} 17. Nc4 {[%clk 0:01:30.9]} 17... Bg6 {[%clk 0:01:14.2]} 18.
Ba3 {[%clk 0:01:23.8]} 18... Qe6 {[%clk 0:01:05.2]} 19. Rad1 {[%clk 0:01:16.6]}
19... Nf6 {[%clk 0:01:04.6]} 20. Rfe1 {[%clk 0:00:55.1]} 20... Rxd1 {[%clk
0:00:57.7]} 21. Qxd1 {[%clk 0:00:55.9]} 21... Nxe4 {[%clk 0:00:50.6]} 22. Bb2
{[%clk 0:00:28.5]} 22... Qe7 {[%clk 0:00:18.8]} 23. Qe2 {[%clk 0:00:20.5]} 23...
Re8 {[%clk 0:00:13.3]} 24. Ncd2 {[%clk 0:00:18]} 24... Nxd2 {[%clk 0:00:12.5]}
25. Nxd2 {[%clk 0:00:18.2]} 25... e4 {[%clk 0:00:11.6]} 26. Nc4 {[%clk 0:00:15]}
26... Qg5 {[%clk 0:00:08.8]} 27. Ne3 {[%clk 0:00:14.9]} 27... h5 {[%clk
0:00:08]} 28. c4 {[%clk 0:00:13.5]} 28... h4 {[%clk 0:00:08]} 29. Bxg7 {[%clk
0:00:12.5]} 29... Kxg7 {[%clk 0:00:08.9]} 30. Qb2+ {[%clk 0:00:12.5]} 30... Qf6
{[%clk 0:00:08.6]} 31. Qxf6+ {[%clk 0:00:11.8]} 31... Kxf6 {[%clk 0:00:09.5]}
32. Rd1 {[%clk 0:00:12.1]} 32... Re7 {[%clk 0:00:07.8]} 33. Rd4 {[%clk
0:00:11.9]} 33... Ke5 {[%clk 0:00:06.9]} 34. Rd8 {[%clk 0:00:11]} 34... f5
{[%clk 0:00:06.6]} 35. g3 {[%clk 0:00:09.6]} 35... hxg3 {[%clk 0:00:05.9]} 36.
fxg3 {[%clk 0:00:10.5]} 36... f4 {[%clk 0:00:05.1]} 37. gxf4+ {[%clk 0:00:10.4]}
37... Kxf4 {[%clk 0:00:05.3]} 38. Kf2 {[%clk 0:00:10.7]} 38... Rf7 {[%clk
0:00:02.3]} 39. Ke2 {[%clk 0:00:07.9]} 39... Bh5+ {[%clk 0:00:01.3]} 40. Kd2
{[%clk 0:00:07.3]} 40... Ke5 {[%clk 0:00:02.2]} 41. Re8+ {[%clk 0:00:04]} 41...
Kd4 {[%clk 0:00:02.1]} 42. Rd8+ {[%clk 0:00:04.1]} 42... Kc5 {[%clk 0:00:02]}
43. Re8 {[%clk 0:00:04.1]} 43... Rf2+ {[%clk 0:00:01.3]} 44. Kc3 {[%clk
0:00:04.5]} 44... Bg6 {[%clk 0:00:01.5]} 45. Re5+ {[%clk 0:00:04.6]} 45... Kb6
{[%clk 0:00:02.4]} 46. a5+ {[%clk 0:00:04.3]} 46... Kb7 {[%clk 0:00:02.5]} 47.
Kb4 {[%clk 0:00:04.4]} 47... Rf3 {[%clk 0:00:02.5]} 48. Ng4 {[%clk 0:00:03.8]}
48... Bh5 {[%clk 0:00:02.2]} 49. a6+ {[%clk 0:00:03.8]} 49... Kb6 {[%clk
0:00:01.3]} 50. c5+ {[%clk 0:00:03.4]} 1-0

[Event "*** SCC Grand Prix: Titled Tuesday Blitz"]
[Site "Chess.com"]
[Date "2020.08.11"]
[Round "6"]
[White "canary2016"]
[Black "ethylalcohol"]
[Result "1-0"]
[WhiteElo "1879"]
[BlackElo "2185"]
[TimeControl "180+1"]
[EndTime "11:07:55 PDT"]
[Termination "canary2016 won by checkmate"]

1. d4 {[%clk 0:03:00.9]} 1... Nf6 {[%clk 0:02:59.4]} 2. c4 {[%clk 0:03:00.2]}
2... g6 {[%clk 0:02:59.1]} 3. Nf3 {[%clk 0:02:59.7]} 3... Bg7 {[%clk 0:02:59.3]}
4. g3 {[%clk 0:03:00]} 4... O-O {[%clk 0:02:57.1]} 5. Bg2 {[%clk 0:03:00.3]}
5... d6 {[%clk 0:02:57.3]} 6. O-O {[%clk 0:03:00.1]} 6... Nbd7 {[%clk
0:02:57.3]} 7. Nc3 {[%clk 0:02:59.2]} 7... c6 {[%clk 0:02:56.9]} 8. e4 {[%clk
0:02:57]} 8... e5 {[%clk 0:02:56.6]} 9. h3 {[%clk 0:02:56]} 9... exd4 {[%clk
0:02:54.8]} 10. Nxd4 {[%clk 0:02:55.1]} 10... Ne5 {[%clk 0:02:55]} 11. b3 {[%clk
0:02:52.3]} 11... Ned7 {[%clk 0:02:48.1]} 12. Bb2 {[%clk 0:02:51.1]} 12... Re8
{[%clk 0:02:40.2]} 13. Re1 {[%clk 0:02:50.3]} 13... a5 {[%clk 0:02:37]} 14. Rc1
{[%clk 0:02:45.6]} 14... Nc5 {[%clk 0:02:34.9]} 15. Qc2 {[%clk 0:02:24.4]} 15...
Qb6 {[%clk 0:02:31.3]} 16. Rcd1 {[%clk 0:02:16.9]} 16... a4 {[%clk 0:02:05.6]}
17. bxa4 {[%clk 0:01:31.3]} 17... Qb4 {[%clk 0:01:59.1]} 18. a3 {[%clk
0:01:26.9]} 18... Qb6 {[%clk 0:01:40.2]} 19. Rb1 {[%clk 0:01:18.7]} 19... Qc7
{[%clk 0:01:19.6]} 20. Rbd1 {[%clk 0:01:14.6]} 20... Ne6 {[%clk 0:01:13]} 21.
Nxe6 {[%clk 0:01:13.3]} 21... Bxe6 {[%clk 0:01:13.1]} 22. Qd3 {[%clk 0:01:11]}
22... Rad8 {[%clk 0:01:12.6]} 23. Ne2 {[%clk 0:01:01.3]} 23... Bc8 {[%clk
0:00:49.3]} 24. Bc3 {[%clk 0:00:57.6]} 24... Qa5 {[%clk 0:00:45.5]} 25. Bxa5
{[%clk 0:00:56.2]} 25... Rd7 {[%clk 0:00:25.8]} 26. Bc3 {[%clk 0:00:54.1]} 26...
Rde7 {[%clk 0:00:19.4]} 27. Bxf6 {[%clk 0:00:53.5]} 27... Bxf6 {[%clk
0:00:18.9]} 28. Nc3 {[%clk 0:00:52.7]} 28... Be6 {[%clk 0:00:16.5]} 29. Rc1
{[%clk 0:00:48.2]} 29... Rd7 {[%clk 0:00:15.8]} 30. f4 {[%clk 0:00:43.9]} 30...
c5 {[%clk 0:00:14.4]} 31. Nd5 {[%clk 0:00:42.6]} 31... Bd4+ {[%clk 0:00:14.5]}
32. Kh1 {[%clk 0:00:41.9]} 32... Kg7 {[%clk 0:00:14.2]} 33. Nb6 {[%clk
0:00:38.3]} 33... Rc7 {[%clk 0:00:13.9]} 34. Nd5 {[%clk 0:00:38]} 34... Rcc8
{[%clk 0:00:14.1]} 35. Qb3 {[%clk 0:00:32.1]} 35... Ra8 {[%clk 0:00:13.7]} 36.
Qxb7 {[%clk 0:00:30.7]} 36... Rxa4 {[%clk 0:00:13.8]} 37. Qb3 {[%clk 0:00:28.9]}
37... Rea8 {[%clk 0:00:12.4]} 38. Qc2 {[%clk 0:00:15.6]} 38... Rxa3 {[%clk
0:00:12.3]} 39. Qd1 {[%clk 0:00:12.3]} 39... Rxg3 {[%clk 0:00:11.5]} 40. Qe2
{[%clk 0:00:09]} 40... Raa3 {[%clk 0:00:11]} 41. Rb1 {[%clk 0:00:07.2]} 41...
Rxh3+ {[%clk 0:00:10.8]} 42. Bxh3 {[%clk 0:00:06.5]} 42... Rxh3+ {[%clk
0:00:11]} 43. Kg2 {[%clk 0:00:06.3]} 43... Rh4 {[%clk 0:00:10.6]} 44. Rh1 {[%clk
0:00:06.3]} 44... Rg4+ {[%clk 0:00:09.3]} 45. Kf1 {[%clk 0:00:06.5]} 45... h5
{[%clk 0:00:09.6]} 46. Qh2 {[%clk 0:00:06.2]} 46... h4 {[%clk 0:00:07.5]} 47.
Ke2 {[%clk 0:00:06.4]} 47... Rg3 {[%clk 0:00:07.6]} 48. Rbg1 {[%clk 0:00:05.2]}
48... Rc3 {[%clk 0:00:07.1]} 49. Kd1 {[%clk 0:00:04.6]} 49... Ra3 {[%clk
0:00:06.5]} 50. Qxh4 {[%clk 0:00:04.5]} 50... Ra1+ {[%clk 0:00:06.6]} 51. Kc2
{[%clk 0:00:04.6]} 51... Ra2+ {[%clk 0:00:06.9]} 52. Kb3 {[%clk 0:00:04.2]}
52... Rb2+ {[%clk 0:00:06.9]} 53. Ka3 {[%clk 0:00:04.4]} 53... Rc2 {[%clk
0:00:05.3]} 54. Qh8# {[%clk 0:00:04.1]} 1-0

[Event "*** SCC Grand Prix: Titled Tuesday Blitz"]
[Site "Chess.com"]
[Date "2020.08.11"]
[Round "6"]
[White "VerdeNotte"]
[Black "Rud_Makarian"]
[Result "1-0"]
[WhiteElo "2880"]
[BlackElo "2676"]
[TimeControl "180+1"]
[EndTime "11:07:57 PDT"]
[Termination "VerdeNotte won by resignation"]

1. e4 {[%clk 0:03:00.9]} 1... e5 {[%clk 0:02:58.6]} 2. Nf3 {[%clk 0:03:00.8]}
2... Nc6 {[%clk 0:02:57.4]} 3. Bc4 {[%clk 0:03:00.9]} 3... Bc5 {[%clk
0:02:56.7]} 4. c3 {[%clk 0:03:00.1]} 4... Nf6 {[%clk 0:02:56.1]} 5. d4 {[%clk
0:03:00.3]} 5... exd4 {[%clk 0:02:55.9]} 6. e5 {[%clk 0:03:00.9]} 6... d5 {[%clk
0:02:54.7]} 7. Bb5 {[%clk 0:03:01.4]} 7... Ne4 {[%clk 0:02:54.2]} 8. cxd4 {[%clk
0:03:01.7]} 8... Bb4+ {[%clk 0:02:54.2]} 9. Bd2 {[%clk 0:03:00.2]} 9... O-O
{[%clk 0:02:52.9]} 10. Bxc6 {[%clk 0:02:38.6]} 10... Nxd2 {[%clk 0:02:51.3]} 11.
Nbxd2 {[%clk 0:02:38.7]} 11... bxc6 {[%clk 0:02:51.3]} 12. O-O {[%clk
0:02:31.3]} 12... c5 {[%clk 0:02:48.6]} 13. a3 {[%clk 0:02:25.7]} 13... Bxd2
{[%clk 0:02:47.5]} 14. Qxd2 {[%clk 0:02:26.6]} 14... Bg4 {[%clk 0:02:47.4]} 15.
dxc5 {[%clk 0:02:21.8]} 15... Bxf3 {[%clk 0:02:41.9]} 16. gxf3 {[%clk
0:02:22.7]} 16... c6 {[%clk 0:02:41.7]} 17. b4 {[%clk 0:02:18.5]} 17... Qh4
{[%clk 0:02:37.2]} 18. Qe3 {[%clk 0:01:59.3]} 18... Rae8 {[%clk 0:02:30.8]} 19.
Rfe1 {[%clk 0:01:54.2]} 19... Re6 {[%clk 0:02:28.1]} 20. f4 {[%clk 0:01:34.4]}
20... Rg6+ {[%clk 0:01:57]} 21. Kh1 {[%clk 0:01:29.6]} 21... Rg4 {[%clk
0:01:57.2]} 22. f5 {[%clk 0:01:16]} 22... Rf4 {[%clk 0:01:56.7]} 23. Rg1 {[%clk
0:01:03.4]} 23... Rxf2 {[%clk 0:01:41.6]} 24. Rg2 {[%clk 0:00:53.6]} 24... Rxg2
{[%clk 0:01:39.1]} 25. Kxg2 {[%clk 0:00:54.5]} 25... Qg4+ {[%clk 0:01:39.4]} 26.
Qg3 {[%clk 0:00:51.4]} 26... Qxf5 {[%clk 0:01:39.4]} 27. Re1 {[%clk 0:00:43.4]}
27... Re8 {[%clk 0:01:37.2]} 28. Qf3 {[%clk 0:00:38.8]} 28... Qg5+ {[%clk
0:01:15]} 29. Qg3 {[%clk 0:00:38.5]} 29... Qxg3+ {[%clk 0:01:03.1]} 30. hxg3
{[%clk 0:00:38.7]} 30... f6 {[%clk 0:01:03.5]} 31. e6 {[%clk 0:00:35.1]} 31...
Kf8 {[%clk 0:01:03.7]} 32. a4 {[%clk 0:00:20.9]} 32... Rb8 {[%clk 0:01:00]} 33.
Rb1 {[%clk 0:00:04]} 33... Ke7 {[%clk 0:00:59.2]} 34. b5 {[%clk 0:00:04]} 34...
cxb5 {[%clk 0:00:43.3]} 35. axb5 {[%clk 0:00:04.9]} 35... Kxe6 {[%clk
0:00:43.1]} 36. Kf3 {[%clk 0:00:05.5]} 36... f5 {[%clk 0:00:39.9]} 37. Ke3
{[%clk 0:00:05.4]} 37... Ke5 {[%clk 0:00:38.8]} 38. Kd3 {[%clk 0:00:05.9]} 38...
d4 {[%clk 0:00:38.2]} 39. Kc4 {[%clk 0:00:05.7]} 39... Ke4 {[%clk 0:00:29.1]}
40. Rd1 {[%clk 0:00:06]} 40... Rd8 {[%clk 0:00:21.4]} 41. c6 {[%clk 0:00:05.4]}
41... g5 {[%clk 0:00:18.1]} 42. c7 {[%clk 0:00:04.2]} 42... Rc8 {[%clk
0:00:18.3]} 43. Rxd4+ {[%clk 0:00:04.7]} 43... Kf3 {[%clk 0:00:19]} 44. Rd7
{[%clk 0:00:04]} 44... Kxg3 {[%clk 0:00:18.1]} 45. Kd5 {[%clk 0:00:04.2]} 45...
f4 {[%clk 0:00:18.2]} 46. Kc6 {[%clk 0:00:04.7]} 46... f3 {[%clk 0:00:18.2]} 47.
Kb7 {[%clk 0:00:04.2]} 47... f2 {[%clk 0:00:15.3]} 48. Rf7 {[%clk 0:00:02.1]}
48... Rg8 {[%clk 0:00:15.3]} 49. Kxa7 {[%clk 0:00:01.2]} 49... h5 {[%clk
0:00:14.2]} 50. b6 {[%clk 0:00:01.8]} 50... h4 {[%clk 0:00:14.6]} 51. b7 {[%clk
0:00:02.4]} 51... h3 {[%clk 0:00:15.1]} 52. b8=Q {[%clk 0:00:03]} 52... h2
{[%clk 0:00:14]} 53. c8=Q+ {[%clk 0:00:03]} 53... Kg2 {[%clk 0:00:07.1]} 54.
Qg4+ {[%clk 0:00:03]} 1-0

[Event "*** SCC Grand Prix: Titled Tuesday Blitz"]
[Site "Chess.com"]
[Date "2020.08.11"]
[Round "6"]
[White "keshka01"]
[Black "maximnovik"]
[Result "0-1"]
[WhiteElo "2580"]
[BlackElo "2468"]
[TimeControl "180+1"]
[EndTime "11:07:57 PDT"]
[Termination "maximnovik won by resignation"]

1. e4 {[%clk 0:03:00.9]} 1... c6 {[%clk 0:02:59.2]} 2. c4 {[%clk 0:03:00.4]}
2... d5 {[%clk 0:02:59.7]} 3. cxd5 {[%clk 0:03:01.3]} 3... cxd5 {[%clk
0:03:00.1]} 4. exd5 {[%clk 0:03:02.2]} 4... Nf6 {[%clk 0:03:00.1]} 5. Qa4+
{[%clk 0:03:02.5]} 5... Nbd7 {[%clk 0:02:59.7]} 6. Nc3 {[%clk 0:03:03]} 6... a6
{[%clk 0:02:58.7]} 7. Bc4 {[%clk 0:02:59.4]} 7... Rb8 {[%clk 0:02:55.2]} 8. Be2
{[%clk 0:02:37.7]} 8... g6 {[%clk 0:02:52]} 9. Nf3 {[%clk 0:02:36.5]} 9... Bg7
{[%clk 0:02:51.7]} 10. d3 {[%clk 0:02:32.8]} 10... b5 {[%clk 0:02:49.9]} 11. Qh4
{[%clk 0:02:31.9]} 11... h6 {[%clk 0:02:50.4]} 12. O-O {[%clk 0:02:27.5]} 12...
g5 {[%clk 0:02:48.6]} 13. Qg3 {[%clk 0:02:19.3]} 13... b4 {[%clk 0:02:04.2]} 14.
Ne4 {[%clk 0:01:40.3]} 14... Nh5 {[%clk 0:02:00.4]} 15. Qh3 {[%clk 0:01:15.2]}
15... Ne5 {[%clk 0:01:59.1]} 16. Qxh5 {[%clk 0:01:13]} 16... Bg4 {[%clk
0:01:58.4]} 17. Nxe5 {[%clk 0:00:55.6]} 17... Bxh5 {[%clk 0:01:57.3]} 18. Bxh5
{[%clk 0:00:32.5]} 18... Bxe5 {[%clk 0:01:55.9]} 19. f4 {[%clk 0:00:24.8]} 19...
Bd4+ {[%clk 0:01:50.2]} 20. Kh1 {[%clk 0:00:24.6]} 20... O-O {[%clk 0:01:29.7]}
21. fxg5 {[%clk 0:00:24.1]} 21... Qxd5 {[%clk 0:01:29.1]} 22. Bf3 {[%clk
0:00:22.8]} 22... Qe5 {[%clk 0:01:21.2]} 23. gxh6 {[%clk 0:00:20.6]} 23... Bxb2
{[%clk 0:01:18.2]} 24. Bxb2 {[%clk 0:00:21.5]} 24... Qxb2 {[%clk 0:01:17.6]} 25.
Ng5 {[%clk 0:00:21.4]} 25... Rb5 {[%clk 0:01:12.8]} 26. Ne4 {[%clk 0:00:14]}
26... Qh8 {[%clk 0:01:08]} 27. a4 {[%clk 0:00:08.9]} 27... Re5 {[%clk
0:00:59.8]} 28. d4 {[%clk 0:00:08.7]} 28... Rxe4 {[%clk 0:00:57.9]} 29. Bxe4
{[%clk 0:00:09.6]} 29... Qxh6 {[%clk 0:00:58]} 30. a5 {[%clk 0:00:08.8]} 30...
e6 {[%clk 0:00:57.1]} 31. Bd3 {[%clk 0:00:08.7]} 31... Ra8 {[%clk 0:00:50.6]}
32. Rfb1 {[%clk 0:00:07.7]} 32... Qe3 {[%clk 0:00:48.3]} 33. Bf1 {[%clk
0:00:07.9]} 33... Qxd4 {[%clk 0:00:48]} 34. Ra4 {[%clk 0:00:05]} 34... Qe4
{[%clk 0:00:41.3]} 35. Raxb4 {[%clk 0:00:03.4]} 35... Qe5 {[%clk 0:00:41.2]} 36.
Ra4 {[%clk 0:00:03.1]} 36... Kg7 {[%clk 0:00:36.7]} 37. Raa1 {[%clk 0:00:03.4]}
37... f5 {[%clk 0:00:33]} 38. h3 {[%clk 0:00:03.8]} 38... Rb8 {[%clk 0:00:29.4]}
39. Re1 {[%clk 0:00:02.5]} 39... Qf6 {[%clk 0:00:24.6]} 40. Rad1 {[%clk
0:00:03.1]} 40... e5 {[%clk 0:00:19.6]} 41. Rd7+ {[%clk 0:00:03.6]} 41... Kg6
{[%clk 0:00:18.5]} 42. Ra7 {[%clk 0:00:04]} 42... Kg5 {[%clk 0:00:15]} 43. Rxa6
{[%clk 0:00:04.4]} 43... Qe7 {[%clk 0:00:15]} 44. Rb6 {[%clk 0:00:04.8]} 44...
Rxb6 {[%clk 0:00:13.8]} 45. axb6 {[%clk 0:00:05.7]} 45... Qb4 {[%clk 0:00:13.5]}
46. Rxe5 {[%clk 0:00:05.9]} 46... Qxb6 {[%clk 0:00:13.5]} 47. Re1 {[%clk
0:00:05.9]} 47... Qf2 {[%clk 0:00:13.2]} 48. Rd1 {[%clk 0:00:05.8]} 48... f4
{[%clk 0:00:13.3]} 49. Rb1 {[%clk 0:00:04.7]} 49... Kh4 {[%clk 0:00:12.7]} 50.
Ra1 {[%clk 0:00:02.7]} 50... Qe3 {[%clk 0:00:10.1]} 51. Rd1 {[%clk 0:00:02.1]}
51... Qf2 {[%clk 0:00:09.6]} 52. Ra1 {[%clk 0:00:02.2]} 52... Qb2 {[%clk
0:00:09.7]} 53. Rd1 {[%clk 0:00:02.6]} 53... f3 {[%clk 0:00:09.4]} 54. gxf3
{[%clk 0:00:02.5]} 54... Kg3 {[%clk 0:00:09.4]} 0-1

[Event "*** SCC Grand Prix: Titled Tuesday Blitz"]
[Site "Chess.com"]
[Date "2020.08.11"]
[Round "6"]
[White "RaunakSadhwani2005"]
[Black "Yashasd1995"]
[Result "1-0"]
[WhiteElo "2939"]
[BlackElo "2516"]
[TimeControl "180+1"]
[EndTime "11:07:59 PDT"]
[Termination "RaunakSadhwani2005 won on time"]

1. d4 {[%clk 0:03:00.9]} 1... Nf6 {[%clk 0:02:58.9]} 2. Bf4 {[%clk 0:03:00.8]}
2... e6 {[%clk 0:02:58]} 3. e3 {[%clk 0:03:00.9]} 3... b6 {[%clk 0:02:57.4]} 4.
Nf3 {[%clk 0:03:00.8]} 4... Bb7 {[%clk 0:02:55.4]} 5. Bd3 {[%clk 0:03:01.1]}
5... d6 {[%clk 0:02:54]} 6. O-O {[%clk 0:03:00.3]} 6... Nbd7 {[%clk 0:02:54]} 7.
h3 {[%clk 0:03:00.7]} 7... Qe7 {[%clk 0:02:53.4]} 8. Bh2 {[%clk 0:03:00.4]} 8...
g6 {[%clk 0:02:53.5]} 9. Nbd2 {[%clk 0:03:00]} 9... Bg7 {[%clk 0:02:53.4]} 10.
e4 {[%clk 0:03:00.4]} 10... e5 {[%clk 0:02:53.2]} 11. c3 {[%clk 0:03:01]} 11...
O-O {[%clk 0:02:52.2]} 12. Re1 {[%clk 0:03:01.6]} 12... Nh5 {[%clk 0:02:51.3]}
13. Bf1 {[%clk 0:03:01.1]} 13... Rad8 {[%clk 0:02:44.9]} 14. a4 {[%clk
0:03:01.2]} 14... a6 {[%clk 0:02:44.5]} 15. Qb3 {[%clk 0:02:59.1]} 15... Rfe8
{[%clk 0:02:23.4]} 16. Rad1 {[%clk 0:02:48.4]} 16... Nf4 {[%clk 0:02:15.7]} 17.
Qc2 {[%clk 0:02:46]} 17... h5 {[%clk 0:02:10.6]} 18. d5 {[%clk 0:02:44.5]} 18...
h4 {[%clk 0:02:07.6]} 19. a5 {[%clk 0:02:42.2]} 19... b5 {[%clk 0:02:02.4]} 20.
c4 {[%clk 0:02:42.5]} 20... b4 {[%clk 0:02:02.4]} 21. Qb3 {[%clk 0:02:39.6]}
21... Rb8 {[%clk 0:02:02.1]} 22. Qxb4 {[%clk 0:02:26.3]} 22... Bxd5 {[%clk
0:02:01.3]} 23. Qc3 {[%clk 0:02:26.9]} 23... Be6 {[%clk 0:01:41.3]} 24. b4
{[%clk 0:02:26.8]} 24... g5 {[%clk 0:01:33.8]} 25. b5 {[%clk 0:02:26.4]} 25...
g4 {[%clk 0:01:32.1]} 26. hxg4 {[%clk 0:02:21.9]} 26... Bxg4 {[%clk 0:01:33]}
27. Nb3 {[%clk 0:02:09.1]} 27... h3 {[%clk 0:01:17.6]} 28. g3 {[%clk 0:02:09.1]}
28... Ne6 {[%clk 0:01:17.6]} 29. Be2 {[%clk 0:02:06.8]} 29... Nec5 {[%clk
0:01:16.1]} 30. Nbd2 {[%clk 0:02:06.8]} 30... Qf6 {[%clk 0:01:10.8]} 31. Rb1
{[%clk 0:01:57.8]} 31... Qg6 {[%clk 0:01:10.1]} 32. Nh4 {[%clk 0:01:57.6]} 32...
Qh5 {[%clk 0:01:09.5]} 33. Bxg4 {[%clk 0:01:56.2]} 33... Qxg4 {[%clk 0:01:10.4]}
34. f3 {[%clk 0:01:51.9]} 34... Qg5 {[%clk 0:01:07]} 35. Nf5 {[%clk 0:01:52.1]}
35... Bh6 {[%clk 0:00:51.1]} 36. Nf1 {[%clk 0:01:45.2]} 36... Nf8 {[%clk
0:00:45.5]} 37. Kh1 {[%clk 0:01:33.3]} 37... Nfe6 {[%clk 0:00:41.7]} 38. Bg1
{[%clk 0:01:33]} 38... Bf8 {[%clk 0:00:41]} 39. Kh2 {[%clk 0:01:30.4]} 39... Qh5
{[%clk 0:00:37.6]} 40. Nd2 {[%clk 0:01:23]} 40... Ra8 {[%clk 0:00:21.5]} 41. Be3
{[%clk 0:01:22.1]} 41... Na4 {[%clk 0:00:19.1]} 42. Qb4 {[%clk 0:01:21]} 42...
Nac5 {[%clk 0:00:19.1]} 43. Qc3 {[%clk 0:01:20.3]} 43... Na4 {[%clk 0:00:19.1]}
44. Qc2 {[%clk 0:01:20.8]} 44... Nac5 {[%clk 0:00:19.1]} 45. b6 {[%clk
0:01:20.9]} 45... cxb6 {[%clk 0:00:18.3]} 46. axb6 {[%clk 0:01:20.4]} 46... a5
{[%clk 0:00:18.1]} 47. g4 {[%clk 0:01:17.2]} 47... Qg6 {[%clk 0:00:16.5]} 48.
Nb3 {[%clk 0:01:17.5]} 48... a4 {[%clk 0:00:16]} 49. Nxc5 {[%clk 0:01:17.4]}
49... dxc5 {[%clk 0:00:16.9]} 50. b7 {[%clk 0:01:17.1]} 50... Rab8 {[%clk
0:00:17.1]} 51. Qxa4 {[%clk 0:01:16.4]} 51... Nd4 {[%clk 0:00:17.2]} 52. Rf1
{[%clk 0:01:08.3]} 52... Qe6 {[%clk 0:00:15.1]} 53. Bxd4 {[%clk 0:00:56.9]}
53... exd4 {[%clk 0:00:14.6]} 54. Kxh3 {[%clk 0:00:49.8]} 54... Qe5 {[%clk
0:00:14.8]} 55. Kg2 {[%clk 0:00:49.7]} 55... Re6 {[%clk 0:00:14.9]} 56. Rh1
{[%clk 0:00:49.4]} 56... Qf4 {[%clk 0:00:14.4]} 57. Qc2 {[%clk 0:00:47.4]} 57...
Ra6 {[%clk 0:00:12.7]} 58. Qf2 {[%clk 0:00:40.4]} 58... Ra3 {[%clk 0:00:11]} 59.
Rh3 {[%clk 0:00:36.6]} 59... Qg5 {[%clk 0:00:09.2]} 60. Rbh1 {[%clk 0:00:36.2]}
60... Bg7 {[%clk 0:00:07.1]} 61. Rh5 {[%clk 0:00:29.5]} 61... Qf6 {[%clk
0:00:05.5]} 62. Rh7 {[%clk 0:00:26.5]} 1-0

[Event "*** SCC Grand Prix: Titled Tuesday Blitz"]
[Site "Chess.com"]
[Date "2020.08.11"]
[Round "6"]
[White "NateSolon"]
[Black "Fortitudine"]
[Result "1-0"]
[WhiteElo "2513"]
[BlackElo "2258"]
[TimeControl "180+1"]
[EndTime "11:08:02 PDT"]
[Termination "NateSolon won on time"]

1. d4 {[%clk 0:03:00.9]} 1... Nf6 {[%clk 0:02:59.7]} 2. c4 {[%clk 0:03:00.9]}
2... c5 {[%clk 0:02:59.7]} 3. d5 {[%clk 0:03:00.2]} 3... b5 {[%clk 0:02:58.2]}
4. cxb5 {[%clk 0:02:56.3]} 4... a6 {[%clk 0:02:58.1]} 5. bxa6 {[%clk 0:02:55.6]}
5... g6 {[%clk 0:02:58.1]} 6. Nc3 {[%clk 0:02:55.1]} 6... Bg7 {[%clk 0:02:58.1]}
7. e4 {[%clk 0:02:55]} 7... O-O {[%clk 0:02:58.3]} 8. Nf3 {[%clk 0:02:51.9]}
8... d6 {[%clk 0:02:58.3]} 9. Be2 {[%clk 0:02:49.8]} 9... Nxa6 {[%clk
0:02:57.9]} 10. O-O {[%clk 0:02:49.2]} 10... Qa5 {[%clk 0:02:58]} 11. h3 {[%clk
0:02:42.5]} 11... Nc7 {[%clk 0:02:57.8]} 12. Bd2 {[%clk 0:02:38.7]} 12... Ba6
{[%clk 0:02:43.1]} 13. a4 {[%clk 0:02:26]} 13... Bxe2 {[%clk 0:02:40.5]} 14.
Qxe2 {[%clk 0:02:26.9]} 14... Qa6 {[%clk 0:02:32.2]} 15. Qxa6 {[%clk 0:02:05.4]}
15... Rxa6 {[%clk 0:02:25]} 16. Rad1 {[%clk 0:01:56.5]} 16... Rb8 {[%clk
0:02:22.2]} 17. Bc1 {[%clk 0:01:26.5]} 17... Nd7 {[%clk 0:02:18.3]} 18. Rfe1
{[%clk 0:01:08.8]} 18... Ne5 {[%clk 0:02:15.7]} 19. Nxe5 {[%clk 0:01:05]} 19...
Bxe5 {[%clk 0:02:16.6]} 20. f4 {[%clk 0:01:04.4]} 20... Bd4+ {[%clk 0:02:13.5]}
21. Kh1 {[%clk 0:01:03.3]} 21... f6 {[%clk 0:01:39.6]} 22. f5 {[%clk 0:00:57.5]}
22... Bxc3 {[%clk 0:01:22.8]} 23. bxc3 {[%clk 0:00:56.4]} 23... Rxa4 {[%clk
0:01:22.9]} 24. e5 {[%clk 0:00:49.1]} 24... fxe5 {[%clk 0:01:18.3]} 25. Bg5
{[%clk 0:00:48.3]} 25... Re8 {[%clk 0:01:08.3]} 26. fxg6 {[%clk 0:00:47.2]}
26... hxg6 {[%clk 0:01:09.2]} 27. Rf1 {[%clk 0:00:40.1]} 27... Rc4 {[%clk
0:00:53.1]} 28. Rf3 {[%clk 0:00:39.2]} 28... Nb5 {[%clk 0:00:43.6]} 29. Bd2
{[%clk 0:00:31.2]} 29... e6 {[%clk 0:00:36.7]} 30. dxe6 {[%clk 0:00:27.4]} 30...
Rxe6 {[%clk 0:00:37.6]} 31. Rdf1 {[%clk 0:00:28.1]} 31... Re7 {[%clk 0:00:15.1]}
32. Rf8+ {[%clk 0:00:20.5]} 32... Kh7 {[%clk 0:00:13.8]} 33. Rb8 {[%clk
0:00:20.6]} 33... Nxc3 {[%clk 0:00:13.2]} 34. Rff8 {[%clk 0:00:20.5]} 34... g5
{[%clk 0:00:12.7]} 35. Bxg5 {[%clk 0:00:19.4]} 35... Rd7 {[%clk 0:00:12.9]} 36.
Rh8+ {[%clk 0:00:16.5]} 36... Kg6 {[%clk 0:00:13.3]} 37. h4 {[%clk 0:00:16.5]}
37... Kf5 {[%clk 0:00:13.7]} 38. Rbf8+ {[%clk 0:00:15.1]} 38... Ke4 {[%clk
0:00:12.1]} 39. h5 {[%clk 0:00:14.5]} 39... Ne2 {[%clk 0:00:11.4]} 40. h6 {[%clk
0:00:13.5]} 40... Ra4 {[%clk 0:00:06.7]} 41. Kh2 {[%clk 0:00:12.7]} 41... Raa7
{[%clk 0:00:06.5]} 42. Bf6 {[%clk 0:00:09.8]} 42... Rh7 {[%clk 0:00:05]} 43. g4
{[%clk 0:00:07.8]} 43... Nf4 {[%clk 0:00:04.6]} 44. g5 {[%clk 0:00:07.2]} 44...
Ng6 {[%clk 0:00:02.3]} 45. Rxh7 {[%clk 0:00:07.1]} 45... Rxh7 {[%clk 0:00:02.5]}
46. Rg8 {[%clk 0:00:07.9]} 46... Kf5 {[%clk 0:00:02.8]} 47. Rg7 {[%clk
0:00:05.6]} 47... Nf8 {[%clk 0:00:01.8]} 48. Kg3 {[%clk 0:00:04]} 1-0